[Event "87th Spanish Championship 2022"]
[Site "Linares"]
[Date "2022.08.16"]
[Round "7.8"]
[White "Cuenca Jimenez, Jose Fernando"]
[Black "Domingo Nunez, Ruben"]
[Result "1-0"]
[ECO "B31"]
[WhiteElo "2552"]
[BlackElo "2361"]
[Annotator "TA"]
[PlyCount "93"]
[EventDate "2022.08.11"]
[EventType "swiss"]
[EventCountry "ESP"]
[SourceTitle "playchess.com"]
[Source "ChessBase"]
[SourceQuality "1"]
[TimeControl "5400+30"]

{[%evp 17,93,3,13,31,53,71,64,72,64,77,100,107,107,100,101,78,71,68,90,94,124,114,120,114,142,141,161,160,161,164,247,162,289,0,0,0,0,0,0,0,0,0,0,0,0,0,0,0,0,0,0,0,593,665,750,749,679,655,659,621,767,767,742,739,835,731,29977,482,683,660,669,659,638,637,622,621,689,679]} 1. e4 {[%emt 0:00:06]} c5 {[%emt 0:00:06]} 2. Nf3 {[%emt 0:00:21]} Nc6 {[%emt 0:00:03]} 3. Bb5 {[%emt 0:03:31]} g6 {[%emt 0:00:03]} 4. Bxc6 {[%emt 0:01:34]} bxc6 {[%emt 0:00:04]} 5. O-O {[%emt 0:00:53]} Bg7 {[%emt 0:00:03]} 6. Re1 {[%emt 0:01:14]} Nh6 {[%emt 0:07:50]} 7. c3 {[%emt 0:00:38]} O-O {[%emt 0:00:34]} 8. d4 {[%emt 0:00:08]} cxd4 {[%emt 0:00:07]} 9. cxd4 {[%emt 0:00:02]} d5 {[%emt 0:05:24]} 10. e5 {[%emt 0:01:47] B31: Sicilian: 2...Nc6 3 Bb5 g6.} Bg4 {[%emt 0:01:23]} 11. Nbd2 $1 {[%emt 0:02:15]} Nf5 {[%emt 0:05:14]} 12. h3 {[%emt 0:00:39] White is slightly better.} Bxf3 {[%emt 0:00:06]} 13. Nxf3 {[%emt 0:00:03] [#]} Qb6 $146 {[%emt 0:00:14]} ({Predecessor:} 13... e6 14. b3 Qa5 15. Bg5 h6 16. Qd2 Qxd2 17. Bxd2 a5 18. Rec1 Ra6 19. Rc5 a4 {0-1 (71) Turov,M (2539)-Rotstein,A (2492) Chalkida 2000}) 14. g4 {[%emt 0:24:40]} Nh6 {[%emt 0:00:10]} 15. b3 {[%emt 0:00:03]} f5 {[%emt 0:04:56]} 16. g5 {[%emt 0:02:22]} Nf7 {[%emt 0:00:04]} 17. Ba3 {[%emt 0:00:23]} Rae8 {[%emt 0:06:56]} 18. Qd2 {[%emt 0:13:25]} f4 {[%emt 0:03:44]} 19. Kh2 {[%emt 0:05:20]} ({Much less strong is} 19. Bc5 Qc7 $14) 19... Nd8 {[%emt 0:09:55]} 20. Rac1 {[%emt 0:00:52]} ({But not} 20. Bc5 Qc7 $14) 20... Rf5 {[%emt 0:09:54]} 21. h4 {[%emt 0:03:24] White is more active.} Kf7 {[%emt 0:03:24]} 22. h5 {[%emt 0:04:16] Black must now prevent Nh4.} Ne6 {[%emt 0:09:32]} 23. Rg1 {[%emt 0:12:25]} ({Don't take} 23. h6 Bf8 $16) 23... Qa6 {[%emt 0:13:22]} (23... Rf8 $142 24. Bb2 Ke8) 24. Bb4 {[%emt 0:01:03]} Rb8 {[%emt 0:00:05]} (24... Rf8 $142 25. Bc5 Qb7) 25. h6 $2 {[%emt 0:07:56]} ({Only move:} 25. Nh4 $18) 25... Bxh6 $11 {[%emt 0:08:41]} 26. gxh6 {[%emt 0:01:48]} Rxb4 $1 {[%emt 0:00:03]} 27. Qxb4 {[%emt 0:02:18]} Qe2 {[%emt 0:00:03]} 28. Kg2 {[%emt 0:02:47]} Ng5 {[%emt 0:00:03]} 29. Rc3 {[%emt 0:06:51]} Nxf3 {[%emt 0:05:48][%mdl 64] [#] Remove Defender} 30. Rxf3 {[%emt 0:00:04] The board is on fire.} Rg5+ {[%emt 0:00:04]} 31. Kh2 {[%emt 0:00:09]} Rh5+ {[%emt 0:00:02]} 32. Rh3 {[%emt 0:00:55]} Qxf2+ {[%emt 0:00:02]} 33. Rg2 {[%emt 0:00:05]} Rxh3+ {[%emt 0:00:02]} 34. Kxh3 {[%emt 0:00:04]} Qe3+ {[%emt 0:00:03][%mdl 8192]} (34... Qf3+ $11 {and Black is okay.} 35. Kh2 Qh5+ 36. Kg1 Qd1+ 37. Kh2 Qh5+ 38. Kg1 Qd1+ 39. Kh2 Qh5+) 35. Kh2 $18 {[%emt 0:00:27]} f3 {[%emt 0:00:04]} 36. Qd2 {[%emt 0:00:20]} Qe4 {[%emt 0:00:09]} 37. Qf2 {[%emt 0:02:32]} Qf4+ {[%emt 0:00:33]} 38. Rg3 {[%emt 0:00:04]} Qxh6+ {[%emt 0:00:12]} 39. Rh3 {[%emt 0:00:42]} Qf4+ {[%emt 0:00:02]} 40. Kh1 {[%emt 0:00:18]} Qc1+ {[%emt 0:00:05]} 41. Qg1 {[%emt 0:00:04]} Qf4 {[%emt 0:00:04]} 42. Qf1 {[%emt 0:00:49]} (42. Rxh7+ $142 Kf8 43. Qxg6 Qc1+ 44. Kh2 Qd2+ 45. Kh3 Qg2+ 46. Qxg2 fxg2 47. Kxg2) 42... f2 {[%emt 0:02:00]} (42... Qxd4 $142 43. Rxf3+ Ke6 44. Qh3+ Kxe5 45. Re3+ Kd6 46. Qe6+ Kc5 47. Qxe7+ Kb5 48. Qb7+ Qb6) 43. Kg2 {[%emt 0:00:04] [#] Hoping for Rf3.} Qg4+ {[%emt 0:00:21]} 44. Rg3 {[%emt 0:00:16]} Qe4+ {[%emt 0:00:20]} 45. Rf3+ {[%emt 0:00:11]} Ke6 {[%emt 0:00:06]} 46. Qxf2 {[%emt 0:00:05]} g5 {[%emt 0:00:02] Threatens to win with ...g4.} 47. Qe3 {[%emt 0:00:24] Weighted Error Value: White=0.17 (very precise) /Black=0.47} 1-0

[Event "87th Spanish Championship 2022"]
[Site "Linares"]
[Date "2022.08.16"]
[Round "7.9"]
[White "Martinez Fernandez, Adrian"]
[Black "Lopez Martinez, Josep Manuel"]
[Result "0-1"]
[ECO "B40"]
[WhiteElo "2366"]
[BlackElo "2486"]
[Annotator "TA"]
[PlyCount "138"]
[EventDate "2022.08.11"]
[EventType "swiss"]
[EventCountry "ESP"]
[SourceTitle "playchess.com"]
[Source "ChessBase"]
[SourceQuality "1"]
[TimeControl "5400+30"]

{[%evp 9,138,0,31,26,26,22,18,15,12,8,7,1,10,0,0,0,0,0,0,0,0,-44,0,0,19,18,21,8,0,11,14,0,23,-31,22,-26,-25,-27,-10,-8,-38,-179,-201,-187,-156,-167,-168,-136,-23,-125,-15,-357,-364,-345,-340,-670,-677,-1048,-387,-377,-388,-368,-386,-383,-385,-356,-277,-277,-277,-401,-360,-334,-238,-485,-485,-485,-469,-395,-395,-471,-336,-319,-313,-588,-588,-577,-573,-552,-480,-480,-463,-396,-164,-296,-289,-289,-289,-289,-289,-289,-289,-903,-807,-666,-655,-1117,-1117,-1117,-1110,-1088,-1034,-1012,-1012,-997,-976,-954,-805,-1083,-1032,-5076,-902,-8029,-481,-8554,-7541,-7385,-7385,-4952,-4947,-1158,-704]} 1. e4 {[%emt 0:00:01]} c5 {[%emt 0:02:13]} 2. Nf3 {[%emt 0:00:06]} e6 {[%emt 0:00:09]} 3. c4 {[%emt 0:00:05]} Nc6 {[%emt 0:00:43]} 4. Nc3 {[%emt 0:00:07]} e5 {[%emt 0:07:32]} 5. d3 {[%emt 0:00:49]} h6 {[%emt 0:01:19]} 6. a3 {[%emt 0:01:02] B40: Sicilian: 2...e6, Unusual lines.} Nf6 {[%emt 0:07:56]} 7. Rb1 {[%emt 0:01:39] [#]} Be7 $146 {[%emt 0:00:12]} ({Predecessor:} 7... d6 8. b4 b6 9. Be2 Be7 10. O-O O-O 11. h3 Kh8 12. Nh2 Nh7 13. Bg4 Bg5 {1-0 (68) Maze,S (2536)-Byron,A (2149) Caleta 2014}) 8. g3 {[%emt 0:03:24] The position is equal.} O-O {[%emt 0:00:54]} 9. Bg2 {[%emt 0:00:16]} a6 {[%emt 0:12:21]} 10. O-O {[%emt 0:01:31]} Rb8 {[%emt 0:03:27]} 11. Nh4 {[%emt 0:13:16]} d6 {[%emt 0:03:20]} 12. Nf5 {[%emt 0:06:26]} Bxf5 {[%emt 0:03:59]} 13. exf5 {[%emt 0:01:14]} Nd4 {[%emt 0:00:11]} 14. g4 {[%emt 0:01:04]} b5 {[%emt 0:01:46]} 15. h3 {[%emt 0:10:57]} Qd7 {[%emt 0:11:09]} 16. f4 {[%emt 0:04:11]} b4 {[%emt 0:03:13]} 17. axb4 {[%emt 0:00:37] [#] Strongly threatening g5.} cxb4 {[%emt 0:00:21]} (17... Rxb4 $2 18. g5 $18) 18. Ne2 {[%emt 0:05:08]} Nxe2+ {[%emt 0:00:16]} 19. Qxe2 {[%emt 0:00:05]} exf4 $1 {[%emt 0:00:13]} 20. Bxf4 {[%emt 0:00:12]} a5 {[%emt 0:02:32]} 21. Bf3 {[%emt 0:07:30]} (21. Kh1 $11) 21... Nh7 {[%emt 0:01:10]} (21... Rbc8 $15) 22. Qh2 {[%emt 0:02:55]} (22. b3 $142) 22... a4 $11 {[%emt 0:04:13]} (22... Ng5 23. Bg2 $14) 23. Ra1 {[%emt 0:01:57] Against a3} Bf6 {[%emt 0:05:07][%cal Oa4a3,Be7f6,Bf6b2,Bb2d4][%mdl 32]} (23... Ng5 24. Bd5 $14) 24. Bxd6 {[%emt 0:17:54]} Bxb2 {[%emt 0:00:34]} 25. Rxa4 {[%emt 0:01:37]} (25. Qxb2 Qxd6 26. Rxa4 Rfe8 $19) ({White must play} 25. Rae1 $1 $15 Qa7+ 26. Kg2) 25... Bd4+ $19 {[%emt 0:02:02]} 26. Kh1 {[%emt 0:00:03]} Qxa4 {[%emt 0:00:52]} 27. Bxb8 {[%emt 0:00:02] This bishop pair is nice.} b3 {[%emt 0:01:53]} 28. Be5 {[%emt 0:00:24]} Qa7 {[%emt 0:04:17]} ({Better is} 28... Qd7 $17 {Threatens to win with ...Bxe5.} 29. Bf4 (29. Bd5 $2 Bxe5 30. Qxe5 Nf6 $19) 29... Bc3) 29. Qf4 {[%emt 0:07:17]} (29. c5 $1 $11 {keeps the balance.} Qxc5 30. Bd6) 29... Rd8 {[%emt 0:01:20]} (29... Bxe5 $17 30. Qxe5 Qa2) 30. Bd5 $2 {[%emt 0:01:26][%mdl 8192]} (30. Bxd4 $11 Rxd4 31. Qe3) 30... Bxe5 {[%emt 0:01:07]} 31. Qxe5 {[%emt 0:00:02]} Nf6 {[%emt 0:00:32]} 32. Rb1 $2 {[%emt 0:01:52]} (32. Ra1 Qf2 33. Qe7 Rxd5 34. cxd5) 32... Re8 {[%emt 0:00:35]} 33. Qb2 {[%emt 0:02:35]} Qa2 $2 {[%emt 0:03:30]} (33... Nxd5 34. cxd5 Qe3) 34. Qxa2 {[%emt 0:04:30]} bxa2 {[%emt 0:00:08]} 35. Ra1 {[%emt 0:00:03]} Nxd5 {[%emt 0:00:46]} 36. Rxa2 {[%emt 0:00:37][%mdl 4096] Endgame KRN-KR} Nf4 {[%emt 0:05:25]} 37. d4 {[%emt 0:00:17]} Re3 {[%emt 0:01:58]} ({Inferior is} 37... Nxh3 38. d5 $17) 38. Ra8+ {[%emt 0:03:20]} Kh7 {[%emt 0:00:11]} 39. Rd8 {[%emt 0:00:08]} (39. d5 {was worth a try.} Rxh3+ 40. Kg1) 39... Rc3 {[%emt 0:02:55]} 40. c5 {[%emt 0:00:17]} Rc4 {[%emt 0:00:48]} ({Don't blunder} 40... Nxh3 $2 41. Kg2 $19) ({Don't go for} 40... Rxh3+ $2 41. Kg1) 41. Kh2 $2 {[%emt 0:02:17]} (41. Rd7 {was called for.}) 41... Ne2 {[%emt 0:00:16]} 42. d5 {[%emt 0:00:06]} Rxc5 {[%emt 0:00:10]} 43. d6 {[%emt 0:00:02]} Rd5 {[%emt 0:00:28]} 44. d7 {[%emt 0:00:43]} Nd4 {[%emt 0:01:43] White must now prevent ...Nf3+.} 45. Kg3 {[%emt 0:00:02]} g5 {[%emt 0:01:12] And now ...Rd6 would win.} 46. Kf2 $2 {[%emt 0:00:35]} (46. fxg6+ {was the only defense.} fxg6 47. Kf4 Ne6+ 48. Ke4) 46... Kg7 {[%emt 0:00:43]} 47. Ke3 {[%emt 0:00:16]} Rd6 {[%emt 0:01:57]} 48. Ke4 {[%emt 0:00:28]} f6 {[%emt 0:01:17]} 49. Ke3 {[%emt 0:00:29]} Kf7 {[%emt 0:01:25]} 50. Rh8 {[%emt 0:00:03]} Nc2+ {[%emt 0:00:07]} (50... Nc6 $142 51. Rh7+ Kg8 52. Rxh6 Kg7 53. Rg6+ Kf7) 51. Kf2 {[%emt 0:01:19]} (51. Ke2 $142 Nd4+ 52. Kf2) 51... Rxd7 {[%emt 0:00:13]} 52. Rh7+ {[%emt 0:00:03]} Ke8 {[%emt 0:00:20]} 53. Rxh6 {[%emt 0:00:21]} Rd2+ {[%emt 0:00:48]} 54. Kf3 {[%emt 0:01:05]} Kf7 {[%emt 0:00:16]} 55. h4 $2 {[%emt 0:00:59]} (55. Rh7+ Kf8 56. Rc7) 55... gxh4 {[%emt 0:00:23] Black is clearly winning.} 56. Rxh4 {[%emt 0:00:09] [#]} Ne1+ $1 {[%emt 0:01:31]} 57. Kg3 {[%emt 0:01:45]} Rg2+ {[%emt 0:00:29]} 58. Kf4 {[%emt 0:00:52]} Nd3+ {[%emt 0:00:31]} 59. Kf3 {[%emt 0:00:49]} Rg1 {[%emt 0:00:29]} 60. Rh7+ {[%emt 0:00:15]} Kg8 {[%emt 0:00:43]} 61. Rc7 {[%emt 0:00:44]} Ne5+ {[%emt 0:00:19]} 62. Ke4 {[%emt 0:00:01]} Nxg4 {[%emt 0:01:00]} 63. Kd5 {[%emt 0:00:33]} Re1 {[%emt 0:00:15]} 64. Kd6 {[%emt 0:00:24]} Nh6 {[%emt 0:00:41] ...Re5 is the strong threat.} 65. Rc5 {[%emt 0:00:43] Against Re5} Kg7 {[%emt 0:00:29]} (65... Re5 $142 66. Rc8+ Kg7 67. Rc7+ Nf7+ 68. Kc6 Rxf5) 66. Ra5 {[%emt 0:00:50]} (66. Rc7+ $142 Nf7+ 67. Kd5) 66... Nf7+ {[%emt 0:00:27]} 67. Kd7 {[%emt 0:00:04]} Re5 {[%emt 0:00:41]} 68. Ra1 {[%emt 0:00:08]} Rxf5 {[%emt 0:00:09]} 69. Rg1+ {[%emt 0:00:03]} Ng5 {[%emt 0:00:26] Weighted Error Value: White=0.77/Black=0.28 (precise)} 0-1

[Event "87th Spanish Championship 2022"]
[Site "Linares"]
[Date "2022.08.16"]
[Round "7.10"]
[White "Ladron De Guevara Pinto, Paolo"]
[Black "Vega Gutierrez, Sabrina"]
[Result "0-1"]
[ECO "B40"]
[WhiteElo "2444"]
[BlackElo "2366"]
[Annotator "TA"]
[PlyCount "76"]
[EventDate "2022.08.11"]
[EventType "swiss"]
[EventCountry "ESP"]
[SourceTitle "playchess.com"]
[Source "ChessBase"]
[SourceQuality "1"]
[TimeControl "5400+30"]

{[%evp 27,76,17,0,22,18,15,12,16,36,30,40,20,15,-19,-22,-13,-26,-20,-47,-56,-16,-172,-158,-183,-172,-164,-103,-114,-121,-129,0,25,19,0,0,0,0,0,0,0,32,32,28,29,40,40,165,171,395,-1035,-858]} 1. e4 {[%emt 0:01:41]} c5 {[%emt 0:00:09]} 2. Nf3 {[%emt 0:00:14]} e6 {[%emt 0:00:08]} 3. d4 {[%emt 0:00:26]} cxd4 {[%emt 0:00:07]} 4. Nxd4 {[%emt 0:00:05]} Nf6 {[%emt 0:00:07]} 5. Nc3 {[%emt 0:00:12]} Nc6 {[%emt 0:00:09]} 6. Nxc6 {[%emt 0:00:06]} bxc6 {[%emt 0:00:05]} 7. e5 {[%emt 0:00:05]} Nd5 {[%emt 0:00:06]} 8. Ne4 {[%emt 0:00:07]} Qc7 {[%emt 0:00:14]} 9. f4 {[%emt 0:00:35]} Qb6 {[%emt 0:00:12]} 10. c4 {[%emt 0:00:17]} Bb4+ {[%emt 0:00:11]} 11. Ke2 {[%emt 0:00:09]} f5 {[%emt 0:00:18]} 12. Nf2 {[%emt 0:00:14]} Ba6 {[%emt 0:00:17]} 13. Kf3 {[%emt 0:00:19]} Ne7 {[%emt 0:00:23]} 14. Be3 {[%emt 0:01:22]} Bc5 {[%emt 0:00:08]} 15. Bxc5 {[%emt 0:00:08] B45: Sicilian Four Knights.} Qxc5 {[%emt 0:00:08]} 16. Qd6 {[%emt 0:00:09]} Qa5 {[%emt 0:00:39][%cal Og7g5]} 17. Be2 {[%emt 0:05:15] The position is equal.} g5 {[%emt 0:01:21]} 18. Rhd1 {[%emt 0:07:34]} (18. fxg5 Ng6 $15) 18... g4+ {[%emt 0:01:47]} 19. Ke3 {[%emt 0:10:07] Threatening b3.} Rd8 {[%emt 0:23:35] [#]} 20. b4 $146 {[%emt 0:18:44]} ({Predecessor:} 20. b3 Nc8 21. Qd4 c5 22. Qb2 Bb7 23. h3 h5 24. hxg4 hxg4 25. Rh1 Ke7 26. Rag1 {0-1 (46) Seemann,J (2382)-Lavrencic,M (2151) Thessaloniki 2022}) 20... Qa3+ {[%emt 0:03:01]} 21. Rd3 {[%emt 0:08:57]} Qb2 {[%emt 0:01:15]} 22. Qd4 {[%emt 0:02:54]} Qxb4 {[%emt 0:02:37]} 23. Rb3 {[%emt 0:02:09]} c5 {[%emt 0:00:33]} 24. Qb2 {[%emt 0:06:29]} (24. Qd3 $11 {and White is okay.} Qa4 25. Ra3) 24... Qa4 $1 $19 {[%emt 0:00:20]} 25. Ra3 {[%emt 0:07:09]} Qc6 {[%emt 0:00:35]} 26. Rd1 {[%emt 0:01:07]} Bxc4 {[%emt 0:21:18]} 27. Bxc4 $17 {[%emt 0:04:24]} Qxg2 {[%emt 0:00:09] White must now prevent ...Qf3+.} 28. Qe2 {[%emt 0:04:39] [#] Inhibits Qf3+.} Ng6 $2 {[%emt 0:00:19]} (28... Qxh2 29. Nd3 Qg3+ 30. Kd2 $15) (28... Nc6 $1 $17 {[%cal Rc6d4] And now ...Nd4 would win.} 29. Nxg4 Qh3+ 30. Qf3 Qxf3+ 31. Kxf3 fxg4+ 32. Kxg4 Rg8+ 33. Kh3 Rf8) 29. Rxa7 $11 {[%emt 0:05:57][%cal Oc4e6] Strongly threatening Bxe6!} Qxh2 {[%emt 0:09:13] Chess con chili.} 30. Nd3 $36 {[%emt 0:00:57][%csl LRc5,LRh2][%mdl 2048] White is pushing.} Qg3+ {[%emt 0:00:08]} 31. Kd2 {[%emt 0:00:05][%cal Be3d2,Bd2c2,Bc2c1][%mdl 32]} Nxf4 {[%emt 0:00:37]} 32. Nxf4 {[%emt 0:05:04]} Qxf4+ {[%emt 0:00:06]} 33. Kc2 {[%emt 0:00:35][%cal Oc4e6] aiming for Bxe6!} O-O $1 {[%emt 0:00:12]} 34. Rdxd7 {[%emt 0:01:45]} Rxd7 {[%emt 0:00:14]} 35. Rxd7 {[%emt 0:00:04]} Kh8 {[%emt 0:00:10]} 36. Bxe6 {[%emt 0:03:30] Hoping for Bc4.} Qa4+ {[%emt 0:12:35] [#]} (36... Re8 $14 37. Bb3 Rxe5) 37. Kc1 $1 $18 {[%emt 0:00:46]} ({Worse is} 37. Kb1 Rb8+ 38. Ka1 Qf4 $14) 37... Rb8 $2 {[%emt 0:06:11]} (37... g3 {is a better defense.}) 38. Qd2 $4 {[%emt 0:02:31][%mdl 8192]} (38. Qh2 {gets mated.} Qa3+ 39. Kd1 Rb1+ 40. Ke2 Qf3+ 41. Kd2 Rb2+ 42. Kc1 Qc3+ 43. Kd1 Rb1+ 44. Ke2 Re1+ 45. Kf2 Qe3+ 46. Kg2 Qf3#) (38. Qd3 $18 Qf4+ 39. Kd1 Qxe5 40. Rd8+ Kg7 41. Rxb8 Qxb8 42. Qxf5 Qd8+ 43. Kc2) 38... Qa3+ {[%emt 0:00:39] Never resign too early!  Weighted Error Value: White=0.37/Black=0.31} 0-1

[Event "87th Spanish Championship 2022"]
[Site "Linares"]
[Date "2022.08.16"]
[Round "7.11"]
[White "Plazuelo Pascual, Juan"]
[Black "Masague Artero, Guerau"]
[Result "1-0"]
[ECO "B30"]
[WhiteElo "2448"]
[BlackElo "2319"]
[Annotator "TA"]
[PlyCount "111"]
[EventDate "2022.08.11"]
[EventType "swiss"]
[EventCountry "ESP"]
[SourceTitle "playchess.com"]
[Source "ChessBase"]
[SourceQuality "1"]
[TimeControl "5400+30"]

{[%evp 9,111,13,21,2,25,18,28,0,14,8,17,0,-9,-7,0,-15,-16,-16,0,-16,-6,0,11,10,59,50,48,44,93,99,99,71,110,100,102,103,110,0,0,0,0,-7,-16,-9,0,0,0,0,0,0,0,0,119,119,114,121,119,116,101,121,99,104,109,97,120,128,141,0,75,85,131,109,258,235,249,259,320,320,318,318,459,453,429,387,386,303,402,404,787,789,783,781,780,773,773,749,12835,12832,12834,12834,12834,12835,6041,994]} 1. e4 {[%emt 0:00:17]} c5 {[%emt 0:00:09]} 2. Nf3 {[%emt 0:00:11]} Nc6 {[%emt 0:00:08]} 3. Bc4 {[%emt 0:00:08]} d6 {[%emt 0:11:44]} 4. O-O {[%emt 0:00:50]} Nf6 {[%emt 0:00:08]} 5. Re1 {[%emt 0:00:36]} g6 {[%emt 0:01:48][%cal Of6e4] [#]} 6. Bd5 $146 {[%emt 0:00:30] B50: Sicilian: 2...d6, Miscellaneous.} ({Predecessor:} 6. c3 Bg7 7. Bb3 O-O 8. h3 b5 9. d4 e5 10. dxc5 dxc5 11. Qe2 c4 12. Bc2 Rb8 {½-½ (51) Grandelius,N (2643)-Mustaps,M (2302) Tallinn 2016}) 6... Nb4 {[%emt 0:13:39]} 7. Bb3 {[%emt 0:09:12]} Bg7 {[%emt 0:00:36]} 8. e5 {[%emt 0:01:57] White has an edge.} dxe5 {[%emt 0:02:07]} 9. Nxe5 {[%emt 0:00:31]} O-O {[%emt 0:00:34]} 10. Qf3 {[%emt 0:08:31]} e6 {[%emt 0:08:40]} 11. d3 {[%emt 0:03:03]} Nd7 {[%emt 0:05:13]} 12. Nc4 {[%emt 0:13:24]} (12. Nxf7 Rxf7 13. Bxe6 Ne5 14. Bxf7+ Nxf7 $17) 12... Nc6 {[%emt 0:03:20]} 13. Qh3 {[%emt 0:07:05]} h5 {[%emt 0:05:09]} (13... Nd4 {is more complex.} 14. Bh6 b5 15. Nd6 Bxh6 16. Qxh6 Qc7) 14. Nbd2 {[%emt 0:03:47]} Nf6 {[%emt 0:06:13][%cal Bd7f6,Bf6d5,Bd5f4][%mdl 32]} 15. Nf3 {[%emt 0:01:42]} Nd5 {[%emt 0:08:09]} 16. Qg3 {[%emt 0:03:56]} Nd4 {[%emt 0:08:02]} (16... Qc7 $11 {might be stronger.}) 17. Nxd4 $14 {[%emt 0:09:47]} cxd4 {[%emt 0:00:19]} 18. Bg5 {[%emt 0:01:39]} Bf6 {[%emt 0:02:44]} (18... Qd7 $14) 19. Bxf6 {[%emt 0:02:16]} Qxf6 {[%emt 0:00:48]} 20. Nd6 {[%emt 0:01:45]} Nf4 {[%emt 0:04:39]} 21. Ne4 {[%emt 0:04:28]} Qf5 {[%emt 0:00:12]} 22. Qh4 {[%emt 0:00:17]} Kg7 {[%emt 0:02:42]} 23. Nd6 {[%emt 0:02:43]} (23. f3 $16) 23... Qg4 $11 {[%emt 0:05:05]} 24. Qxg4 {[%emt 0:00:50] Active counter play!} hxg4 {[%emt 0:00:06]} 25. Ba4 {[%emt 0:11:08]} f5 {[%emt 0:01:14][%cal Bf7f5,Bf5g4][%mdl 32]} 26. h3 {[%emt 0:03:23]} Rd8 {[%emt 0:05:03]} 27. Nxc8 {[%emt 0:01:01]} Raxc8 {[%emt 0:00:13]} 28. hxg4 {[%emt 0:00:04]} fxg4 {[%emt 0:00:12]} 29. Re4 {[%emt 0:00:43]} Rf8 {[%emt 0:02:44]} 30. Rf1 {[%emt 0:02:20]} Rc5 {[%emt 0:01:53] [#]} (30... b5 $11 {keeps the balance.} 31. Bb3 (31. Bxb5 $2 Rxc2 32. Kh2 Rh8+ 33. Kg3 Nh5+ 34. Kxg4 Nf6+ 35. Kf3 Nxe4 $19) 31... a5) 31. g3 $1 $36 {[%emt 0:00:11][%mdl 2048] White is on the roll.} Nh3+ {[%emt 0:00:06]} 32. Kg2 {[%emt 0:00:11]} Rcf5 {[%emt 0:01:42][%cal Rf5f2]} 33. Rxg4 {[%emt 0:01:17]} Rxf2+ {[%emt 0:00:45]} 34. Rxf2 {[%emt 0:00:06]} Nxf2 {[%emt 0:00:03]} 35. Rxd4 {[%emt 0:00:17][%mdl 4096] Endgame KRB-KRN} Nd1 {[%emt 0:00:02]} 36. Re4 {[%emt 0:05:02] Prevents Ne3+.} Rf2+ {[%emt 0:00:56]} 37. Kg1 {[%emt 0:00:25]} Rf3 {[%emt 0:00:26]} 38. Kg2 {[%emt 0:01:10]} (38. Rxe6 $142 {Re7+ is the strong threat.} Rxg3+ 39. Kh2) 38... Rf2+ {[%emt 0:00:05] [#]} 39. Kh3 $1 {[%emt 0:00:36]} ({Resist} 39. Kg1 Rf6 40. Bb3 Nxb2 41. Bxe6 (41. Rxe6 Rxe6 42. Bxe6 Nd1 $16) 41... b6) 39... Rf6 {[%emt 0:01:34]} ({Better is} 39... Nxb2 40. Bb3 b5) 40. Re1 {[%emt 0:00:04]} Nf2+ {[%emt 0:00:12] This costs Black the game.} (40... Nxb2 $16 41. Bb3 b5) 41. Kg2 $18 {[%emt 0:00:09]} Ng4 {[%emt 0:00:29]} 42. Bb3 {[%emt 0:00:15]} e5 {[%emt 0:01:04]} 43. Re4 {[%emt 0:00:22]} Nf2 {[%emt 0:00:26]} 44. Rxe5 {[%emt 0:00:07]} Kh6 {[%emt 0:00:31]} (44... Kf8 {is a better defense.} 45. Re2 Ng4) 45. Re2 {[%emt 0:01:02]} ({Less strong is} 45. Re7 Nd1 46. g4 a5 $18) 45... Ng4 {[%emt 0:00:05]} 46. Bd5 {[%emt 0:00:15]} Kg5 {[%emt 0:00:25]} 47. Bf3 {[%emt 0:00:50]} Nh6 {[%emt 0:00:13]} 48. Re5+ {[%emt 0:00:08]} Nf5 {[%emt 0:00:02]} (48... Rf5 $142) 49. g4 {[%emt 0:00:23] White is clearly winning.} Rb6 {[%emt 0:01:20]} 50. gxf5 {[%emt 0:00:25]} Rxb2 {[%emt 0:00:06]} 51. fxg6+ {[%emt 0:00:14]} Kxg6 {[%emt 0:00:02] KRB-KR} 52. Re2 {[%emt 0:00:15]} Rxa2 {[%emt 0:00:06]} 53. Bxb7 {[%emt 0:00:13]} a5 {[%emt 0:00:06]} 54. Bd5 {[%emt 0:00:59]} Rb2 {[%emt 0:00:03]} 55. Bb3 {[%emt 0:00:20]} Rb1 {[%emt 0:00:22]} 56. Re4 {[%emt 0:00:14] Weighted Error Value: White=0.12 (very precise) /Black=0.24 (precise)} 1-0